bitfinex-derivatives/quotes_ETHF0:USTF0_20230701
["timestamp","ask_amount","ask_price","bid_price","bid_amount"]
[1688174185613,3.51871,1930.0,1929.8,0.13389987]
[1688174185919,0.59762635,1930.0,1929.9,0.31092]
[1688174186123,0.31091,1930.0,1929.8,0.91123987]
[1688174186308,0.31091,1930.0,1929.9,0.6141388]
[1688174187119,0.31091,1930.0,1929.9,0.3032188]
[1688174187319,0.59762635,1930.0,1929.9,0.3032188]
[1688174188111,0.59762635,1930.0,1929.8,0.91123987]
[1688174188822,0.31091,1930.0,1929.8,0.91123987]
[1688174189016,0.31091,1930.0,1929.9,5.6931488]
[1688174190528,0.59762635,1930.0,1929.9,5.6931488]
[1688174191224,0.31091,1930.0,1929.9,5.6931488]
[1688174193720,0.77728,1930.1,1929.9,5.6931488]
[1688174193932,0.77728,1930.1,1930.0,8.41469987]
[1688174194225,0.77728,1930.1,1930.0,5.51780987]
[1688174195018,0.77728,1930.1,1930.0,10.43970987]
[1688174198331,0.77728,1930.1,1930.0,10.65673785]
[1688174198532,0.31089,1930.2,1930.1,5.079]
[1688174198835,0.7772,1930.5,1930.2,0.43711867]
[1688174199127,0.7772,1930.5,1930.4,8.59764]
[1688174199731,1.06391635,1930.5,1930.4,5.3822188]
[1688174199936,1.06391635,1930.5,1930.4,5.079]
[1688174200135,1.06391635,1930.5,1930.3,5.079]
[1688174200341,0.56748412,1930.4,1930.3,5.079]
[1688174200637,0.87832412,1930.4,1930.3,5.079]
[1688174200827,0.87832412,1930.4,1930.1,6.17667231]
[1688174201032,0.28671635,1930.3,1930.1,6.17667231]
[1688174201234,0.31088,1930.2,1930.1,6.17667231]
[1688174201538,0.31088,1930.2,1930.1,6.31057218]
[1688174207634,0.31088,1930.2,1930.1,6.73149702]
[1688174215037,0.7772,1930.3,1930.1,6.73149702]
[1688174215234,0.7772,1930.3,1930.2,0.3032188]
[1688174215439,0.93264,1930.4,1930.2,0.6140988]
[1688174215646,0.7772,1930.5,1930.3,0.13389987]
[1688174215942,0.7772,1930.5,1930.4,0.31084]
[1688174216156,0.31079,1930.8,1930.4,8.9008588]
[1688174216444,0.93236,1931.0,1930.8,0.31078]
[1688174216746,0.77697,1931.1,1930.9,5.82686867]
[1688174216941,0.77697,1931.1,1931.0,5.38975]
[1688174218344,0.31853779,1931.2,1931.0,5.38975]
[1688174218544,0.31853779,1931.2,1931.1,5.51611867]
[1688174218739,0.31853779,1931.2,1931.1,5.82684867]
[1688174220437,0.93215,1931.3,1931.1,5.82684867]
[1688174220438,0.93197,1931.7,1931.2,5.079]
[1688174220637,5.37987754,1931.8,1931.6,5.079]
[1688174220638,1.03545,1931.8,1931.6,5.079]
[1688174220842,0.31064,1932.0,1931.7,5.52352987]
[1688174221038,0.31059,1932.0,1931.9,5.079]
[1688174221238,0.31059,1932.0,1931.9,5.52349987]
[1688174221447,0.69930635,1932.0,1931.7,0.93182]
[1688174221646,5.74030635,1932.0,1931.6,5.079]
[1688174221943,0.31064,1931.7,1931.6,0.31064]
[1688174222149,0.77661,1931.8,1931.6,5.52353987]
[1688174222340,0.77661,1931.8,1931.7,5.38964]
[1688174222540,1.06332635,1931.8,1931.7,5.38964]
[1688174222749,0.77661,1931.8,1931.7,5.38964]
[1688174222944,0.31064,1931.9,1931.7,5.6928588]
[1688174223249,1.13742,1932.0,1931.8,0.44452987]
[1688174223445,0.78434418,1932.1,1931.9,0.3032188]
[1688174223643,0.31834418,1932.1,1932.0,0.44448987]
[1688174223850,0.31834418,1932.1,1932.0,5.52348987]
[1688174225341,0.00776418,1932.1,1932.0,5.52348987]
[1688174227752,3.51831,1932.6,1932.1,0.3032188]
[1688174228057,3.51831,1932.6,1932.5,5.079]
[1688174228350,3.94601111,1932.6,1932.5,5.52340987]
[1688174228944,0.42770111,1932.6,1932.5,5.52340987]
[1688174229140,0.73819111,1932.6,1932.5,5.52340987]
[1688174229345,0.73819111,1932.6,1932.4,5.86304177]
[1688174229346,1.02490746,1932.6,1932.4,5.86304177]
[1688174229542,1.02490746,1932.6,1932.5,0.31051]
[1688174230845,4.23270746,1932.6,1932.4,5.08676177]
[1688174231049,4.23270746,1932.6,1932.4,5.39729177]
[1688174232058,4.23270746,1932.6,1932.4,0.31829177]
[1688174232855,4.23270746,1932.6,1932.4,0.45219164]
[1688174233560,1.02490746,1932.6,1932.4,0.45219164]
[1688174234042,1.02490746,1932.6,1932.4,0.31829177]
[1688174234246,4.23270746,1932.6,1932.4,0.31829177]
[1688174236156,4.23270746,1932.6,1932.4,0.45219164]
[1688174236359,3.94599111,1932.6,1932.4,0.45219164]
[1688174236654,0.59722635,1932.5,1932.4,5.52519164]
[1688174236855,1.02523052,1932.5,1932.4,5.39129177]
[1688174237056,1.02523052,1932.5,1932.4,5.52519164]
[1688174239149,1.59271464,1932.5,1932.4,0.00776177]
[1688174239351,6.67171464,1932.5,1931.9,5.079]
[1688174239552,8.59739,1932.0,1931.6,19.66454]
[1688174239759,3.2078,1931.8,1931.6,5.85554]
[1688174240062,0.52021825,1931.7,1931.6,5.079]
[1688174240359,0.52021825,1931.7,1931.5,10.90204538]
[1688174240547,3.80516635,1931.6,1931.5,10.90204538]
[1688174240752,3.80516635,1931.6,1931.5,10.43613538]
[1688174241152,3.80516635,1931.6,1931.5,10.99257189]
[1688174241357,3.80516635,1931.6,1931.5,10.85867202]
[1688174242961,3.80516635,1931.6,1931.5,10.54800202]
[1688174243260,3.80516635,1931.6,1931.5,0.43030202]
[1688174243558,3.96329794,1931.6,1931.5,0.43030202]
[1688174244260,3.96329794,1931.6,1931.5,0.00776538]
[1688174245759,8.99729794,1931.6,1931.5,0.00776538]
[1688174246258,5.0,1931.3,1930.7,5.079]
[1688174246456,3.51858,1930.8,1930.7,5.079]
[1688174246650,4.37278047,1930.8,1930.6,1.59259948]
[1688174246862,4.37278047,1930.8,1930.7,0.08572832]
[1688174247461,4.37278047,1930.8,1930.6,0.007769]
[1688174247762,4.37278047,1930.8,1930.7,0.08570321]
[1688174249063,9.55378047,1930.8,1930.7,0.08570321]
[1688174249557,9.55378047,1930.8,1930.7,0.12076599]
[1688174251271,14.55378047,1930.8,1930.6,0.007769]
[1688174251566,14.55378047,1930.8,1930.1,0.3109]
[1688174251567,0.31082,1930.6,1930.1,0.3109]
[1688174251768,3.51869,1930.2,1930.1,0.3109]
[1688174251956,3.80540635,1930.2,1930.1,0.71896391]
[1688174252156,3.80540635,1930.2,1930.1,0.3109]
[1688174253761,3.80540635,1930.2,1930.0,5.48569652]
[1688174253963,3.80540635,1930.2,1930.1,0.31091]
[1688174254267,3.80540635,1930.2,1930.0,6.26298652]
[1688174255263,0.56748412,1930.1,1930.0,5.48569652]
[1688174255572,0.87839412,1930.1,1930.0,5.48569652]
[1688174255763,0.87839412,1930.1,1930.0,0.72361652]
[1688174257668,0.87839412,1930.1,1930.0,0.41269652]
[1688174257860,5.94539412,1930.1,1930.0,0.41269652]
[1688174258056,5.94539412,1930.1,1929.4,5.079]
[1688174258057,10.94539412,1930.1,1929.4,5.079]
[1688174258268,3.5188,1929.5,1929.4,5.85654]
[1688174258472,3.5188,1929.5,1929.4,6.29365867]
[1688174258671,3.80551635,1929.5,1929.4,6.29365867]
[1688174258966,3.5188,1929.5,1929.4,6.54501363]
[1688174259367,3.80551635,1929.5,1929.4,6.54501363]
[1688174259575,3.80551635,1929.5,1929.4,8.13878686]
[1688174259869,3.80551635,1929.5,1929.4,8.4264929]
[1688174260568,0.66948412,1929.4,1928.9,5.10295]
[1688174260760,8.58588,1929.0,1928.7,1.03707]
[1688174260963,8.58588,1929.0,1928.5,10.34341]
[1688174260964,0.31113,1928.7,1928.5,10.0323]
[1688174261175,3.51895,1928.6,1928.5,10.8102]
[1688174261368,3.80566635,1928.6,1928.5,10.8102]
[1688174261566,3.80566635,1928.6,1928.1,3.2078]
[1688174261567,8.84666635,1928.6,1928.1,5.39021]
[1688174261764,8.84666635,1928.6,1928.1,0.31121]
[1688174261765,3.51901,1928.2,1928.1,0.31121]
[1688174261959,3.80572635,1928.2,1928.0,10.111]
[1688174262159,4.37321047,1928.2,1928.0,5.032]
[1688174262369,4.37321047,1928.2,1928.1,0.104]
[1688174262561,0.93364,1928.4,1928.3,0.77795598]
[1688174262862,1.22035635,1928.4,1928.3,5.85095598]
[1688174263068,9.49515635,1928.4,1928.3,0.77795598]
[1688174263666,9.59715635,1928.4,1928.3,0.77795598]
[1688174263866,9.59715635,1928.4,1928.2,1e-08]
[1688174263867,0.102,1928.3,1928.2,1e-08]
[1688174264067,6.03367412,1928.3,1928.2,1e-08]
[1688174264370,6.03367412,1928.3,1927.4,1.08627]
[1688174264371,5.102,1927.8,1926.7,13.135]
[1688174264575,5.079,1927.1,1926.9,0.31142]
[1688174264775,0.31139,1927.1,1927.0,6.08150868]
[1688174264976,0.00778392,1927.2,1927.1,0.104]
[1688174265161,5.079,1927.6,1927.2,0.31100151]
[1688174265162,0.31131,1927.6,1927.2,0.31100151]
[1688174265472,5.38935,1927.3,1927.2,0.00778271]
[1688174265665,8.88386635,1927.3,1927.2,0.00778271]
[1688174265871,9.55335047,1927.3,1927.2,0.00778271]
[1688174266269,0.102,1927.1,1927.0,0.55544944]
[1688174266569,9.54239047,1927.1,1927.0,0.44392579]
[1688174266968,9.44039047,1927.1,1927.0,0.44392579]
[1688174267169,8.2488,1927.1,1927.0,1.90478953]
[1688174267360,8.53551635,1927.1,1927.0,1.77088965]
[1688174268171,0.00778311,1927.4,1927.0,6.98378953]
[1688174268572,0.00778311,1927.4,1927.1,0.3032188]
[1688174268766,0.102,1927.1,1927.0,1.45948965]
[1688174269075,8.3628,1927.1,1927.0,0.44392579]
[1688174269263,14.21700047,1927.1,1927.0,0.44392579]
[1688174269464,0.102,1926.6,1926.0,5.48453]
[1688174269676,5.078,1926.1,1926.0,0.1]
[1688174269968,10.97920047,1926.1,1926.0,0.1]
[1688174270169,0.85420047,1926.1,1926.0,0.1]
[1688174270369,10.44471635,1926.1,1926.0,0.1]
[1688174270765,5.36471635,1926.1,1926.0,0.1]
[1688174270969,11.21558796,1926.2,1926.0,0.58393623]
[1688174271274,11.21558796,1926.2,1926.0,0.41156]
[1688174271471,0.00778796,1926.2,1926.1,0.104]
[1688174271668,0.00778796,1926.2,1926.1,8.7187588]
[1688174272174,11.1678,1927.0,1926.1,16.7187588]
[1688174272474,11.2078,1927.2,1926.7,3.62325]
[1688174272664,8.0,1927.4,1926.9,0.41541]
[1688174272867,3.2078,1927.9,1927.3,8.086]
[1688174273168,3.2078,1927.9,1927.4,0.3191117]
[1688174273169,0.0077817,1927.8,1927.4,0.3191117]
[1688174273367,0.0077817,1927.8,1927.6,0.3113]
[1688174273368,0.57526582,1927.8,1927.6,0.3113]
[1688174273568,0.57526582,1927.8,1927.4,0.0077817]
[1688174273569,16.59651635,1927.7,1927.4,0.0077817]
[1688174273765,3.2078,1927.5,1927.4,0.3191117]
[1688174273966,0.0077817,1927.8,1927.4,8.46448793]
[1688174274166,3.2078,1928.1,1927.7,8.31128]
[1688174274373,3.2078,1928.1,1927.8,0.3032188]
[1688174274570,0.28671635,1928.0,1927.9,0.48362623]
[1688174274765,0.102,1928.9,1927.9,8.45662623]
[1688174274977,3.2078,1928.7,1928.2,8.3112]
[1688174275165,3.2078,1928.9,1928.6,8.0]
[1688174275370,8.0,1929.4,1928.7,8.17237623]
[1688174275577,8.0,1929.5,1928.9,7.973]
[1688174276074,8.0,1929.5,1929.0,0.31108]
[1688174276275,8.0,1929.2,1929.1,0.00777504]
[1688174276469,0.28671635,1929.2,1929.1,0.18015127]
[1688174276669,8.0,1929.3,1929.1,0.31883504]
[1688174276873,0.28671635,1929.2,1929.1,0.31883504]
[1688174277383,0.85420047,1929.2,1929.1,0.31883504]
[1688174278379,5.0,1929.0,1928.5,0.93346]
[1688174278574,8.0,1928.6,1928.5,0.93346]
[1688174278773,8.28671635,1928.6,1928.5,0.93346]
[1688174279284,8.38871635,1928.6,1928.2,1.35769359]
[1688174279480,8.0,1928.3,1928.2,0.00777847]
[1688174279784,13.28671635,1928.3,1928.2,0.00777847]
[1688174280076,13.85420047,1928.3,1928.2,0.00777847]
[1688174280280,7.933,1928.4,1928.2,0.4913647]
[1688174280588,8.102,1928.6,1928.2,0.4913647]
[1688174281286,7.939,1928.3,1928.2,0.00777847]
[1688174281483,8.53690635,1928.3,1928.2,0.00777847]
[1688174281683,8.25019,1928.3,1928.2,0.4913647]
[1688174281880,0.31118,1928.4,1928.2,0.4913647]
[1688174282179,0.56748412,1928.3,1928.2,0.31898847]
[1688174282387,0.87868412,1928.3,1928.2,0.31898847]
[1688174282586,8.87868412,1928.3,1928.2,0.00777847]
[1688174282780,16.23771635,1928.2,1927.7,0.77822]
[1688174282975,3.2078,1928.0,1927.8,1.0814088]
[1688174283180,0.31126,1927.9,1927.8,1.25378503]
[1688174284286,0.00778069,1928.0,1927.8,4.46158503]
[1688174284486,0.00778069,1928.0,1927.8,12.44458503]
[1688174285691,11.2078,1928.9,1927.8,12.44458503]
[1688174285989,3.2078,1928.9,1928.6,0.31115]
[1688174286292,3.77528412,1928.9,1928.7,0.17237623]
[1688174286582,3.77528412,1928.9,1928.4,0.31118]
[1688174286583,8.102,1928.8,1928.4,0.31118]
[1688174286787,3.77528412,1928.7,1928.5,0.31115]
[1688174286984,0.85420047,1928.7,1928.5,0.48352623]
[1688174287285,0.00777686,1929.0,1928.7,0.31113]
[1688174287491,0.00777686,1929.0,1928.8,3.38017623]
[1688174287679,0.00777686,1929.0,1928.8,11.98649503]
[1688174287989,0.00777686,1929.0,1928.9,7.95]
[1688174288191,3.2078,1929.3,1929.0,0.3032188]
[1688174288387,3.2078,1929.3,1929.0,0.6142788]
[1688174288589,3.2078,1929.7,1929.2,8.0]
[1688174288792,8.032,1929.8,1929.3,0.6142488]
[1688174288982,0.56748412,1929.7,1929.3,0.6142488]
[1688174289187,7.933,1929.6,1929.3,0.31103]
[1688174289492,0.28671635,1929.5,1929.3,3.8220488]
[1688174289688,0.00777403,1929.7,1929.4,0.48337623]
[1688174289885,0.00777403,1929.7,1929.5,0.3032188]
[1688174290189,4.0697745,1929.7,1929.5,0.6141988]
[1688174290585,0.8619745,1929.7,1929.5,0.6141988]
[1688174291787,0.8619745,1929.7,1929.5,3.8219988]
[1688174291788,0.00777403,1929.7,1929.5,3.8219988]
[1688174291998,0.00777403,1929.7,1929.6,0.17237623]
[1688174292191,0.29449038,1929.7,1929.6,0.48335623]
[1688174292499,0.00777403,1929.7,1929.6,0.48335623]
[1688174295395,0.29449038,1929.7,1929.6,0.48335623]
[1688174295691,0.00777403,1929.7,1929.6,0.48335623]
[1688174296493,0.00777403,1929.7,1929.6,3.69115623]
[1688174296791,0.29449038,1929.7,1929.6,0.31098]
[1688174296992,0.00777403,1929.7,1929.6,0.48335623]
[1688174297190,0.00777403,1929.7,1929.6,3.69115623]
[1688174297589,3.62525715,1930.5,1929.6,3.69115623]
[1688174297590,3.2078,1930.3,1929.6,3.69115623]
[1688174297790,3.2078,1930.3,1929.8,3.2078]
[1688174298087,0.23841081,1930.2,1929.9,0.31094]
[1688174298289,0.28671635,1930.1,1929.9,0.6141588]
[1688174298592,0.31091,1930.1,1929.9,0.6141588]
[1688174298794,0.31091,1930.1,1930.0,0.48329623]
[1688174299087,0.54936234,1930.1,1930.0,0.48329623]
[1688174300395,0.83607869,1930.1,1930.0,0.31092]
[1688174301095,0.83607869,1930.1,1930.0,0.48329623]
[1688174301390,0.83607869,1930.1,1930.0,3.69109623]
[1688174301391,0.23845234,1930.1,1930.0,3.69109623]
[1688174301592,0.00777202,1930.2,1930.0,3.69109623]
[1688174301787,0.00777202,1930.2,1930.1,0.6141188]
[1688174301983,0.31866202,1930.2,1930.1,0.6141188]
[1688174302195,0.00777202,1930.2,1930.1,0.6141188]
[1688174303402,0.62497897,1930.2,1930.1,0.6141188]
[1688174305293,0.62497897,1930.2,1929.9,0.77727]
[1688174305589,4.11949532,1930.2,1929.8,0.31871202]
[1688174305789,0.56748412,1930.1,1929.8,0.31871202]
[1688174305999,0.31092,1930.0,1929.9,0.48329623]
[1688174306198,0.5366058,1930.0,1929.9,0.48329623]
[1688174307104,0.82332215,1930.0,1929.9,0.31092]
[1688174307294,0.82332215,1930.0,1929.8,0.31872202]
[1688174307497,3.95589875,1930.0,1929.8,0.00777202]
[1688174307805,13.78248412,1929.9,1929.4,4.9843]
[1688174308101,13.78248412,1929.9,1929.3,0.77757]
[1688174308102,3.51875,1929.8,1929.3,0.77757]
[1688174308295,0.56748412,1929.7,1929.2,0.77757]
[1688174308501,0.31098,1929.6,1929.3,0.31103]
[1688174308696,0.31102,1929.4,1929.2,0.40492132]
[1688174308898,0.102,1929.3,1929.1,0.00777484]
[1688174309093,0.102,1929.1,1928.2,0.93359]
[1688174309310,3.2078,1929.0,1928.4,0.77789]
[1688174309510,3.2078,1928.8,1928.4,0.77789]
[1688174309809,0.31112,1928.8,1928.6,3.2078]
[1688174310101,0.31112,1928.8,1928.7,0.48350623]
[1688174310602,0.94113726,1928.9,1928.7,0.48350623]
[1688174311106,0.94113726,1928.9,1928.7,0.78672503]
[1688174311107,0.00777726,1928.9,1928.7,0.78672503]
[1688174311706,0.31887726,1928.9,1928.7,0.78672503]
[1688174312013,0.60559361,1928.9,1928.8,0.39336817]
[1688174312204,0.60559361,1928.9,1928.8,0.5657444]
[1688174312599,0.60559361,1928.9,1928.8,0.39336817]
[1688174313008,0.60559361,1928.9,1928.8,0.5657444]
[1688174313712,0.31105,1929.2,1928.8,0.5657444]
[1688174314007,0.31107,1929.1,1929.0,0.31108]
[1688174314200,0.31107,1929.1,1929.0,0.48345623]
[1688174314401,0.77766,1929.3,1929.0,0.48345623]
[1688174314598,0.31106,1929.4,1929.2,3.2078]
[1688174314801,0.94090484,1929.5,1929.4,0.31102]
[1688174315203,0.94090484,1929.5,1929.4,0.6142388]
[1688174315499,0.00777484,1929.5,1929.4,0.6142388]
[1688174315804,0.00777484,1929.5,1929.4,3.8220388]
[1688174316305,0.00777484,1929.5,1929.3,0.17237623]
[1688174316306,0.60549119,1929.5,1929.3,0.17237623]
[1688174316501,0.60549119,1929.5,1929.2,0.93306]
[1688174316702,0.60549119,1929.5,1929.3,0.48340623]
[1688174317104,0.06940257,1929.4,1929.3,0.48340623]
[1688174317411,0.00777484,1929.5,1929.3,3.99442503]
[1688174317611,0.31877484,1929.5,1929.3,0.78662503]
[1688174317800,0.60549119,1929.5,1929.2,0.93306]
[1688174318005,0.60549119,1929.5,1929.3,0.31103]
[1688174318204,0.56748412,1929.4,1929.3,0.31103]
[1688174318517,0.87850412,1929.4,1929.3,0.31103]
[1688174321014,0.31102,1929.4,1929.3,0.48340623]
[1688174321223,0.29449119,1929.5,1929.3,0.48340623]
[1688174321506,0.00777484,1929.5,1929.4,0.6142288]
[1688174322910,0.31877484,1929.5,1929.4,0.6142288]
[1688174323803,0.00777484,1929.5,1929.4,0.6142288]
[1688174324011,0.00777484,1929.5,1929.4,3.8220288]
[1688174329406,0.77738,1930.1,1929.6,5.0]
[1688174329611,0.18946013,1930.0,1929.8,3.2078]
[1688174329815,0.18946013,1930.0,1929.9,0.31093]
[1688174330009,0.31086,1930.4,1929.9,0.48330623]
[1688174330314,0.31086,1930.4,1930.0,3.2078]
[1688174330511,0.31863122,1930.4,1930.1,0.3109]
[1688174330816,0.31862122,1930.4,1930.2,0.17237623]
[1688174331012,0.31862122,1930.4,1930.3,0.31087]
[1688174331612,0.60533757,1930.4,1930.3,0.31087]
[1688174332119,0.00777122,1930.4,1930.3,0.31087]
[1688174332317,0.31862122,1930.4,1930.3,0.31087]
[1688174332616,0.31862122,1930.4,1930.3,0.6140888]
[1688174333515,0.54551205,1930.4,1930.3,0.6140888]
[1688174334115,0.23466205,1930.4,1930.3,0.6140888]
[1688174334521,0.00777122,1930.4,1930.3,0.6140888]
[1688174334715,0.23622215,1930.4,1930.3,0.6140888]
[1688174335718,0.00777122,1930.4,1930.3,0.6140888]
[1688174337316,0.31862122,1930.4,1930.3,0.6140888]
[1688174337620,0.54835349,1930.4,1930.3,0.6140888]
[1688174338621,0.83506984,1930.4,1930.3,0.31087]
[1688174340029,0.23750349,1930.4,1930.3,0.48324623]
[1688174340521,0.83506984,1930.4,1930.3,0.48324623]
[1688174340722,0.83506984,1930.4,1930.3,0.31087]
[1688174341524,0.83506984,1930.4,1930.3,0.48324623]
[1688174341732,0.23750349,1930.4,1930.3,0.48324623]
[1688174342529,0.54835349,1930.4,1930.3,0.48324623]
[1688174342924,0.83506984,1930.4,1930.3,0.48324623]
[1688174343223,0.83506984,1930.4,1930.3,0.31087]
[1688174344529,4.04286984,1930.4,1930.0,1.19473252]
[1688174344730,0.56748412,1930.3,1930.0,0.78503122]
[1688174344923,0.82638918,1930.2,1930.0,0.78503122]
[1688174345319,0.82638918,1930.2,1930.1,0.3109]
[1688174345633,1.32988423,1930.2,1930.0,0.31869122]
[1688174346030,1.32988423,1930.2,1930.0,0.49106745]
[1688174346828,1.32988423,1930.2,1930.0,0.00777122]
[1688174347031,3.2078,1930.1,1930.0,0.00777122]
[1688174347331,0.3109,1930.1,1930.0,0.31869122]
[1688174347523,3.5187,1930.1,1930.0,0.31869122]
[1688174347721,3.60169599,1930.1,1930.0,0.00777122]
[1688174347924,3.5187,1930.1,1930.0,0.00777122]
[1688174348220,3.5187,1930.1,1930.0,0.31869122]
[1688174348428,3.6112641,1930.1,1930.0,0.49106745]
[1688174348623,0.4034641,1930.1,1930.0,0.49106745]
[1688174348925,0.43460906,1930.1,1930.0,0.49106745]
[1688174349723,0.43460906,1930.1,1930.0,0.00777122]
[1688174349932,0.3109,1930.1,1930.0,0.00777122]
[1688174350139,0.3109,1930.1,1930.0,0.31869122]
[1688174350638,0.41422496,1930.1,1930.0,0.31869122]
[1688174351133,0.41422496,1930.1,1930.0,0.49106745]
[1688174352245,0.70094131,1930.1,1930.0,0.49106745]
[1688174352443,0.70094131,1930.1,1930.0,0.31869122]
[1688174353240,0.41422496,1930.1,1930.0,0.49106745]
[1688174353544,0.70094131,1930.1,1930.0,0.49106745]
[1688174353939,0.70094131,1930.1,1930.0,0.00777122]
[1688174354134,0.59761635,1930.1,1930.0,0.00777122]
[1688174354935,0.6833333,1930.1,1930.0,0.00777122]
[1688174355446,0.56748412,1930.0,1929.6,0.77745]
[1688174355742,0.31095,1929.8,1929.6,0.77745]
[1688174356047,0.31095,1929.8,1929.7,0.17237623]
[1688174356348,0.31095,1929.8,1929.7,0.48334623]
[1688174356744,0.59766635,1929.8,1929.7,0.31097]
[1688174356950,1.16515047,1929.8,1929.7,0.31097]
[1688174357142,9.09615047,1929.8,1929.6,0.00777303]
[1688174357342,11.1928,1929.7,1929.6,0.00777303]
[1688174357543,11.1928,1929.7,1928.8,0.93326]
[1688174357544,12.59243269,1929.7,1928.8,0.93326]
[1688174357844,3.2078,1929.2,1928.8,0.93326]
[1688174358144,3.2078,1929.0,1928.7,8.28011]
[1688174358337,3.3098,1928.8,1928.5,1.03722]
[1688174358538,12.07141412,1928.7,1928.6,0.00777686]
[1688174358740,12.35813047,1928.7,1928.6,0.00777686]
[1688174359046,12.35813047,1928.7,1928.3,0.31119]
[1688174359351,3.2078,1928.4,1928.3,0.31119]
[1688174359555,0.31117,1928.5,1928.3,8.8792673]
[1688174359854,0.31117,1928.5,1928.3,8.46856623]
[1688174360053,0.31117,1928.5,1928.3,8.77178503]
[1688174361142,1.50095412,1928.7,1928.3,8.77178503]
[1688174361347,0.77783,1928.8,1928.6,8.29615]
[1688174361546,0.77783,1928.8,1928.7,0.47559503]
[1688174361747,0.77783,1928.8,1928.7,0.78672503]
[1688174362539,1.06454635,1928.8,1928.7,0.48350623]
[1688174362746,1.06454635,1928.8,1928.7,0.31113]
[1688174362941,1.06454635,1928.8,1928.7,0.48350623]
[1688174363241,0.77783,1928.8,1928.7,8.46850623]
[1688174363448,0.77783,1928.8,1928.7,8.67775367]
[1688174364350,1.06454635,1928.8,1928.7,0.69275367]
[1688174364751,0.77783,1928.8,1928.7,0.69275367]
[1688174366056,1.06454635,1928.8,1928.7,0.69275367]
[1688174366560,0.77783,1928.8,1928.7,0.69275367]
[1688174367757,1.06454635,1928.8,1928.7,0.69275367]
[1688174368868,1.06454635,1928.8,1928.7,0.20924744]
[1688174368869,4.27234635,1928.8,1928.7,0.20924744]
[1688174369161,4.27234635,1928.8,1928.5,1.19575006]
[1688174369552,0.56748412,1928.7,1928.6,0.28628255]
[1688174369754,0.87861412,1928.7,1928.6,0.28628255]
[1688174370355,8.79961412,1928.7,1928.6,0.28628255]
[1688174370754,8.79961412,1928.7,1928.2,14.12798847]
[1688174370955,3.98579,1928.4,1928.3,0.28623468]
[1688174371157,4.83999047,1928.4,1928.3,0.28623468]
[1688174372158,4.94199047,1928.4,1928.3,0.28623468]
[1688174372364,12.92699047,1928.4,1927.9,0.77808]
[1688174372556,3.2078,1928.2,1927.9,0.77808]
[1688174372756,1.16542047,1928.1,1928.0,0.221771]
[1688174373370,1.16542047,1928.1,1927.6,1.03767]
[1688174373371,14.15042047,1928.1,1927.3,0.77831]
[1688174373665,3.2078,1927.8,1927.5,0.31131]
[1688174373860,0.31128,1927.7,1927.6,8.46059503]
[1688174374056,0.77821,1927.8,1927.6,8.87589503]
[1688174374257,0.77821,1927.8,1927.7,7.985]
[1688174374455,0.77821,1927.8,1927.7,8.29628]
[1688174374664,1.06492635,1927.8,1927.7,0.31128]
[1688174374959,1.06492635,1927.8,1927.6,8.5995188]
[1688174375367,1.06492635,1927.8,1927.6,8.77189503]
[1688174376067,0.56748412,1927.7,1927.3,1.35907829]
[1688174376362,7.985,1927.5,1927.3,0.42513829]
[1688174376558,7.985,1927.5,1926.9,7.985]
[1688174376559,0.31135,1927.3,1926.9,7.985]
[1688174376760,0.31138,1927.1,1927.0,0.41320975]
[1688174376968,0.59809635,1927.1,1926.9,8.29641]
[1688174377268,1.16558047,1927.1,1926.9,8.46878623]
[1688174377484,0.31138,1927.1,1927.0,7.985]
[1688174377773,0.93415,1927.3,1927.0,11.50419]
[1688174377962,0.93415,1927.3,1927.2,8.29636]
[1688174378969,0.77839,1927.5,1927.3,0.104]
[1688174379159,0.77834,1927.7,1927.4,3.99472503]
[1688174379462,0.3113,1927.6,1927.4,3.99472503]
[1688174379866,0.59801635,1927.6,1927.4,0.78692503]
[1688174380069,0.59801635,1927.6,1927.5,0.34264595]
[1688174380467,0.59801635,1927.6,1927.1,12.8397]
[1688174380468,1.16550047,1927.6,1927.1,13.61811]
[1688174380665,1.16550047,1927.6,1927.5,0.43532497]
[1688174380968,1.16550047,1927.6,1927.3,0.31134]
[1688174381171,1.16550047,1927.6,1927.5,0.41202725]
[1688174381364,1.16550047,1927.6,1927.4,0.31133]
[1688174381568,1.16550047,1927.6,1927.5,0.31131]
[1688174381769,0.3113,1927.6,1927.5,8.71222159]
[1688174381964,0.3113,1927.6,1927.5,9.01544039]
[1688174383374,0.31903129,1927.9,1927.5,9.01544039]
[1688174383569,0.31903129,1927.9,1927.8,8.28027]
[1688174383768,0.31903129,1927.9,1927.8,8.75586503]
[1688174385374,0.93374,1928.2,1927.8,8.75586503]
[1688174385679,0.31122,1928.1,1927.8,0.78686503]
[1688174386279,0.31122,1928.1,1928.0,0.31124]
[1688174386476,0.31122,1928.1,1928.0,0.78683503]
[1688174386773,0.31122,1928.1,1928.0,8.75583503]
[1688174387373,0.00777988,1928.2,1928.0,8.75583503]
[1688174387574,0.00777988,1928.2,1928.1,11.1928]
[1688174387777,0.31898988,1928.2,1928.1,11.50402]
[1688174388474,0.00777988,1928.2,1928.1,11.50402]
[1688174390873,0.31114,1928.6,1928.3,8.22019]
[1688174391082,0.93349,1928.7,1928.5,3.2078]
[1688174391279,0.93349,1928.7,1928.6,0.6143588]
[1688174391474,0.93349,1928.7,1928.6,0.78673503]
[1688174392184,1.22020635,1928.7,1928.6,0.07441881]
[1688174392387,1.22020635,1928.7,1928.6,0.38555881]
[1688174392679,0.93349,1928.7,1928.6,0.55793504]
[1688174392982,0.93349,1928.7,1928.6,0.48351623]
[1688174394277,0.31889746,1928.8,1928.6,8.45251623]
[1688174394581,0.31888746,1928.8,1928.7,0.3032188]
[1688174394779,0.31888746,1928.8,1928.7,0.6143388]
[1688174395476,0.31888746,1928.8,1928.4,5.70056]
[1688174395477,0.60560381,1928.8,1928.4,5.70056]
[1688174395684,3.81340381,1928.8,1928.5,0.1107749]
[1688174395985,0.56748412,1928.7,1928.5,0.1107749]
[1688174396283,0.59785635,1928.6,1928.5,0.1107749]
[1688174396673,11.76065635,1928.6,1928.5,0.1107749]
[1688174396980,11.76065635,1928.6,1928.1,3.6130622]
[1688174396981,11.76065635,1928.6,1928.1,0.7164722]
[1688174397180,11.76065635,1928.6,1928.5,0.1366595]
[1688174397380,11.76065635,1928.6,1928.1,0.7164722]
[1688174397678,11.76065635,1928.6,1928.2,0.13044919]
[1688174397881,0.31117,1928.4,1928.2,0.13044919]